bitfinex/quotes_BTCUSD_20230115
["timestamp","ask_amount","ask_price","bid_price","bid_amount"]
[1673813197373,1.30449542,20861.0,20860.0,0.0049875]
[1673813198896,0.79744544,20861.0,20860.0,0.0049875]
[1673813199159,0.91144544,20861.0,20860.0,0.0049875]
[1673813199407,1.22647479,20861.0,20860.0,0.0049875]
[1673813199679,1.40950257,20861.0,20860.0,0.0049875]
[1673813199941,0.00085863,20859.0,20855.0,0.01336315]
[1673813200193,0.94865775,20858.0,20855.0,0.01336315]
[1673813200447,0.174171,20857.0,20855.0,0.01336315]
[1673813200706,0.0085,20857.0,20855.0,0.01336315]
[1673813201210,0.165671,20856.0,20855.0,0.01336315]
[1673813201471,0.0085,20857.0,20855.0,0.01336315]
[1673813201728,0.0085,20857.0,20855.0,0.01436315]
[1673813201987,0.280671,20856.0,20855.0,0.01336315]
[1673813202243,0.951649,20856.0,20855.0,0.01436315]
[1673813202535,0.99471612,20856.0,20855.0,0.01436315]
[1673813202743,0.99471612,20856.0,20855.0,0.01536315]
[1673813203004,1.51837344,20856.0,20855.0,0.01336315]
[1673813203321,1.60137344,20856.0,20855.0,0.01436315]
[1673813203587,0.257171,20856.0,20855.0,0.01336315]
[1673813204150,0.86762707,20856.0,20855.0,0.01190641]
[1673813204410,0.95062707,20856.0,20855.0,0.01290641]
[1673813204682,0.78462707,20856.0,20855.0,0.01190641]
[1673813204936,1.01069419,20856.0,20855.0,0.01290641]
[1673813205244,0.92769419,20856.0,20855.0,0.01190641]
[1673813205495,1.49144219,20856.0,20855.0,0.01290641]
[1673813205753,1.49144219,20856.0,20855.0,0.01190641]
[1673813206005,1.62304287,20856.0,20855.0,0.01190641]
[1673813206260,1.70604287,20856.0,20855.0,0.01290641]
[1673813206558,1.64597575,20856.0,20855.0,0.01390641]
[1673813207340,1.99895818,20856.0,20855.0,0.01390641]
[1673813207593,1.86891633,20856.0,20855.0,0.01390641]
[1673813208125,1.65899804,20856.0,20855.0,0.01390641]
[1673813208391,1.65899804,20856.0,20855.0,0.01383981]
[1673813208657,1.68493859,20856.0,20855.0,0.01383981]
[1673813208914,1.80392374,20856.0,20855.0,0.01383981]
[1673813209635,1.58932306,20856.0,20855.0,0.01383981]
[1673813209896,1.80392374,20856.0,20855.0,0.01383981]
[1673813210162,1.66090158,20856.0,20855.0,0.01383981]
[1673813210433,1.80390835,20856.0,20855.0,0.01383981]
[1673813210683,1.80390835,20856.0,20853.0,0.01232405]
[1673813210684,2.44271469,20856.0,20853.0,0.01232405]
[1673813210939,0.64336423,20854.0,20853.0,0.01200809]
[1673813211207,3.18501906,20854.0,20853.0,0.01200809]
[1673813211475,1.60192069,20854.0,20853.0,0.01200809]
[1673813211745,1.60192069,20854.0,20853.0,0.07942691]
[1673813212014,1.60192069,20854.0,20853.0,0.01200809]
[1673813212265,1.69392069,20854.0,20853.0,0.01200809]
[1673813212527,1.60192069,20854.0,20853.0,0.01200809]
[1673813212785,1.96030108,20854.0,20853.0,0.01200809]
[1673813213256,2.26030108,20854.0,20853.0,0.01200809]
[1673813213259,2.17463936,20854.0,20853.0,0.01200809]
[1673813213509,1.96030108,20854.0,20853.0,0.00700809]
[1673813213768,2.86791789,20854.0,20853.0,0.00700809]
[1673813214017,3.01097716,20854.0,20853.0,0.00700809]
[1673813214270,3.23714535,20854.0,20853.0,0.00700809]
[1673813214527,3.16677766,20854.0,20853.0,0.00700809]
[1673813215034,3.25883766,20854.0,20853.0,0.00700809]
[1673813215289,3.46683766,20854.0,20853.0,0.00700809]
[1673813215601,2.64004308,20854.0,20853.0,0.00700809]
[1673813215849,2.39259593,20854.0,20853.0,0.00700809]
[1673813216103,2.27759593,20854.0,20853.0,0.00700809]
[1673813219027,2.42031286,20854.0,20853.0,0.00700809]
[1673813219281,1.84519762,20854.0,20853.0,0.00700809]
[1673813220023,0.1,20853.0,20852.0,0.01243974]
[1673813220278,1.24299335,20853.0,20852.0,0.01243974]
[1673813220540,1.40866435,20853.0,20852.0,0.01243974]
[1673813220845,1.30866435,20853.0,20852.0,0.00743974]
[1673813221332,1.40066435,20853.0,20852.0,0.00743974]
[1673813223371,1.40072435,20853.0,20852.0,0.00743974]
[1673813228395,1.40066435,20853.0,20852.0,0.00743974]
[1673813228894,0.092,20853.0,20852.0,0.91548428]
[1673813228895,0.092,20853.0,20852.0,0.72475833]
[1673813229155,0.092,20853.0,20852.0,1.1407542]
[1673813229463,0.092,20853.0,20852.0,1.5557542]
[1673813229742,0.10918508,20853.0,20852.0,1.5557542]
[1673813230248,0.10918508,20853.0,20852.0,0.93683561]
[1673813230505,0.01718508,20853.0,20852.0,0.93683561]
[1673813230765,0.10118508,20853.0,20852.0,0.93783561]
[1673813231287,0.11018508,20853.0,20852.0,1.04483561]
[1673813231542,0.01718508,20853.0,20852.0,0.93683561]
[1673813231822,0.01718508,20853.0,20852.0,1.41640561]
[1673813232081,0.01718508,20853.0,20852.0,1.9050126]
[1673813232647,0.01718508,20853.0,20852.0,1.32168374]
[1673813232938,0.01718508,20853.0,20852.0,1.89018609]
[1673813233201,0.01718508,20853.0,20852.0,1.32168374]
[1673813233465,0.02618508,20853.0,20852.0,1.9039521]
[1673813233722,0.02618508,20853.0,20852.0,1.8969521]
[1673813233723,0.01718508,20853.0,20852.0,1.8969521]
[1673813234021,0.02518508,20853.0,20852.0,1.9039521]
[1673813234533,0.03418508,20853.0,20852.0,1.9109521]
[1673813234796,0.01718508,20853.0,20852.0,1.8969521]
[1673813236033,0.01718508,20853.0,20852.0,1.32168374]
[1673813236552,0.02618508,20853.0,20852.0,1.32868374]
[1673813237844,0.02618508,20853.0,20852.0,1.54368374]
[1673813238109,0.02618508,20853.0,20852.0,3.13459885]
[1673813238373,0.02618508,20853.0,20852.0,3.8158803]
[1673813238631,0.02618508,20853.0,20852.0,3.60058251]
[1673813238901,0.02618508,20853.0,20852.0,3.95965396]
[1673813239181,0.02618508,20853.0,20852.0,3.95914662]
[1673813239432,0.01718508,20853.0,20852.0,3.80789863]
[1673813239684,0.02618508,20853.0,20852.0,3.81489863]
[1673813239936,0.02618508,20853.0,20852.0,2.98032765]
[1673813239937,0.00334543,20853.0,20852.0,2.98032765]
[1673813240201,0.00334543,20853.0,20852.0,3.26688429]
[1673813240522,0.00334543,20853.0,20852.0,2.98032765]
[1673813240732,0.00334543,20853.0,20852.0,3.26688429]
[1673813241508,0.00334543,20853.0,20852.0,3.05335901]
[1673813241845,0.00334543,20853.0,20852.0,3.26810385]
[1673813242049,0.00334543,20853.0,20852.0,2.98154721]
[1673813242328,0.00334543,20853.0,20852.0,3.26810385]
[1673813242608,0.00334543,20853.0,20852.0,3.12469332]
[1673813242872,0.00334543,20853.0,20852.0,2.80224395]
[1673813243133,0.00334543,20853.0,20852.0,1.54931301]
[1673813245174,0.00334543,20853.0,20852.0,1.45091301]
[1673813245435,0.00334543,20853.0,20852.0,0.81470481]
[1673813245728,0.00334543,20853.0,20852.0,1.11470481]
[1673813246449,0.00334543,20853.0,20852.0,1.59427481]
[1673813247220,0.00334543,20853.0,20852.0,1.11528374]
[1673813247475,0.00334543,20853.0,20852.0,1.22938374]
[1673813249253,0.00334543,20853.0,20852.0,1.37252985]
[1673813249515,0.00334543,20853.0,20852.0,1.22938374]
[1673813251039,0.39908844,20858.0,20853.0,0.64778112]
[1673813251284,0.39908844,20858.0,20854.0,1.49974395]
[1673813251536,0.39908844,20858.0,20855.0,0.32122]
[1673813251790,0.39908844,20858.0,20856.0,0.049988]
[1673813252092,0.39908844,20858.0,20855.0,0.67021795]
[1673813252295,0.39908844,20858.0,20855.0,0.479492]
[1673813252552,0.39908844,20858.0,20856.0,0.1738516]
[1673813253832,0.39908844,20858.0,20856.0,0.1748516]
[1673813254091,0.115,20857.0,20856.0,0.001]
[1673813254349,0.289171,20857.0,20856.0,0.001]
[1673813254658,0.389171,20857.0,20856.0,0.001]
[1673813254869,0.289171,20857.0,20856.0,0.001]
[1673813255129,0.58682636,20857.0,20853.0,0.56815778]
[1673813255399,0.0085,20856.0,20853.0,0.56815778]
[1673813256221,0.0085,20856.0,20852.0,0.48699874]
[1673813256473,0.0085,20856.0,20852.0,1.03989074]
[1673813256727,0.0595,20856.0,20853.0,0.002]
[1673813257267,0.0595,20856.0,20853.0,0.63014582]
[1673813257525,0.52205495,20856.0,20853.0,0.62814582]
[1673813258849,0.59805495,20856.0,20853.0,0.63014582]
[1673813259629,0.59805495,20856.0,20854.0,0.65737101]
[1673813259958,0.59805495,20856.0,20855.0,0.0659371]
[1673813260407,0.59805495,20856.0,20854.0,0.65737101]
[1673813260660,0.52205495,20856.0,20854.0,0.65737101]
[1673813260913,0.59805495,20856.0,20854.0,0.65837101]
[1673813261431,0.59805495,20856.0,20854.0,0.65737101]
[1673813261698,0.52205495,20856.0,20854.0,0.65737101]
[1673813262499,0.59805495,20856.0,20855.0,0.001]
[1673813262777,0.59805495,20856.0,20854.0,0.65737101]
[1673813263033,0.67405495,20856.0,20854.0,0.65837101]
[1673813264805,0.1605,20856.0,20855.0,0.96659118]
[1673813265079,0.152,20856.0,20855.0,1.63681813]
[1673813265337,0.152,20856.0,20855.0,1.74609218]
[1673813265605,0.152,20856.0,20855.0,1.100775]
[1673813265865,0.00085863,20859.0,20855.0,1.215775]
[1673813266146,0.00085863,20859.0,20856.0,0.349936]
[1673813266460,0.00085863,20859.0,20857.0,0.800693]
[1673813266688,0.00085863,20859.0,20858.0,0.349929]
[1673813267212,0.00785863,20859.0,20858.0,0.349929]
[1673813267485,0.00935863,20859.0,20858.0,0.49512881]
[1673813267830,0.01635863,20859.0,20858.0,0.49512881]
[1673813268186,0.01635863,20859.0,20858.0,1.05535308]
[1673813268434,0.00935863,20859.0,20858.0,1.05535308]
[1673813268690,0.00385863,20859.0,20858.0,1.07635308]
[1673813268944,0.00085863,20859.0,20858.0,1.05535308]
[1673813269213,0.05485863,20859.0,20858.0,2.74640402]
[1673813269465,0.00085863,20859.0,20858.0,2.87266632]
[1673813269727,0.00385863,20859.0,20858.0,3.3407378]
[1673813269983,0.00085863,20859.0,20858.0,3.17657029]
[1673813270262,0.00785863,20859.0,20858.0,3.19857029]
[1673813270531,0.00085863,20859.0,20858.0,2.72983957]
[1673813270787,0.00785863,20859.0,20858.0,2.89500708]
[1673813271036,0.00785863,20859.0,20858.0,2.60845044]
[1673813271308,0.00785863,20859.0,20858.0,2.75183331]
[1673813272125,0.00085863,20859.0,20858.0,2.72983331]
[1673813272385,0.00785863,20859.0,20858.0,2.40674031]
[1673813272635,0.00085863,20859.0,20858.0,2.40674031]
[1673813272901,0.00785863,20859.0,20858.0,2.40674031]
[1673813273161,0.00785863,20859.0,20858.0,2.72866894]
[1673813273409,0.00085863,20859.0,20858.0,2.40674031]
[1673813273918,0.00785863,20859.0,20858.0,3.19738411]
[1673813274216,0.00785863,20859.0,20858.0,2.75065339]
[1673813274431,0.00785863,20859.0,20858.0,2.4286735]
[1673813274702,0.00085863,20859.0,20858.0,2.1915879]
[1673813274966,0.00785863,20859.0,20858.0,2.2135879]
[1673813275215,0.00085863,20859.0,20858.0,2.1915879]
[1673813275515,0.00785863,20859.0,20858.0,1.25482396]
[1673813275733,0.00776162,20859.0,20858.0,2.21359513]
[1673813275984,0.00776162,20859.0,20858.0,1.25482396]
[1673813276252,0.00776162,20859.0,20858.0,1.33282396]
[1673813276518,0.00076162,20859.0,20858.0,1.33282396]
[1673813276811,0.00776162,20859.0,20858.0,1.35482396]
[1673813277030,0.00776162,20859.0,20858.0,2.31358932]
[1673813277277,0.00776162,20859.0,20858.0,2.52867492]
[1673813277792,0.00076162,20859.0,20858.0,2.50667492]
[1673813278053,0.00776162,20859.0,20858.0,2.85019152]
[1673813278561,0.01476162,20859.0,20858.0,2.55067492]
[1673813278812,0.00076162,20859.0,20858.0,1.23282396]
[1673813279340,0.00076162,20859.0,20858.0,1.08956081]
[1673813279599,0.00076162,20859.0,20858.0,3.17465798]
[1673813279865,0.00776162,20859.0,20858.0,3.05339483]
[1673813280118,0.00776162,20859.0,20858.0,3.19648604]
[1673813280375,0.00776162,20859.0,20858.0,3.38234793]
[1673813280691,0.00776162,20859.0,20858.0,1.74415044]
[1673813280906,0.00076162,20859.0,20858.0,1.72215044]
[1673813281151,0.00776162,20859.0,20858.0,1.72215044]
[1673813281412,0.00776162,20859.0,20858.0,1.57695063]
[1673813281666,0.00776162,20859.0,20858.0,1.59895063]
[1673813281893,0.00776162,20859.0,20858.0,1.62095063]
[1673813282150,0.01476162,20859.0,20858.0,1.62095063]
[1673813282400,0.00076162,20859.0,20858.0,1.57695063]
[1673813283425,0.00076162,20859.0,20858.0,1.46195063]
[1673813284171,0.00776162,20859.0,20858.0,1.18395063]
[1673813284461,0.00076162,20859.0,20858.0,1.46195063]
[1673813284723,0.00776162,20859.0,20858.0,1.48395063]
[1673813288007,0.00776162,20859.0,20858.0,0.851361]
[1673813288279,0.00776162,20859.0,20858.0,1.36958895]
[1673813289019,0.00776162,20859.0,20858.0,0.8929992]
[1673813289262,0.00776162,20859.0,20858.0,1.41833877]
[1673813289512,0.00776162,20859.0,20858.0,0.8929992]
[1673813289768,0.00776162,20859.0,20858.0,1.41018985]
[1673813292548,0.00776162,20859.0,20858.0,0.8929992]
[1673813292803,0.00776162,20859.0,20858.0,1.49274944]
[1673813293048,0.00776162,20859.0,20858.0,0.8929992]
[1673813293302,0.00776162,20859.0,20858.0,1.39774857]
[1673813293817,0.00776162,20859.0,20858.0,1.51274857]
[1673813294853,0.00776162,20859.0,20858.0,1.0079992]
[1673813295334,0.00776162,20859.0,20858.0,1.15109339]
[1673813295579,0.00776162,20859.0,20858.0,1.25109339]
[1673813296085,0.00776162,20859.0,20858.0,1.36617899]
[1673813296333,0.00776162,20859.0,20858.0,1.65315482]
[1673813296577,0.00776162,20859.0,20858.0,1.15109339]
[1673813297329,0.00769797,20859.0,20858.0,2.28329473]
[1673813297589,0.00769797,20859.0,20858.0,2.60409551]
[1673813299327,0.00769797,20859.0,20858.0,2.74755796]
[1673813299863,0.00769797,20859.0,20858.0,2.46100132]
[1673813300122,0.00769797,20859.0,20858.0,2.74755796]
[1673813301162,0.00769797,20859.0,20858.0,3.36984714]
[1673813301404,0.00769797,20859.0,20858.0,2.90563876]
[1673813301689,0.00769797,20859.0,20858.0,3.08377149]
[1673813301945,0.00769797,20859.0,20858.0,3.22707831]
[1673813302517,0.007,20859.0,20858.0,3.22713068]
[1673813302777,0.007,20859.0,20858.0,3.08377149]
[1673813303597,0.007,20859.0,20858.0,3.51431398]
[1673813304391,0.007,20859.0,20858.0,2.8920248]
[1673813304649,0.007,20859.0,20858.0,3.26959803]
[1673813304901,0.007,20859.0,20858.0,3.20990444]
[1673813305370,0.007,20859.0,20858.0,2.78725023]
[1673813305630,0.007,20859.0,20858.0,2.77413944]
[1673813306233,0.007,20859.0,20858.0,2.24639671]
[1673813307470,0.007,20859.0,20858.0,2.67645559]
[1673813308198,0.007,20859.0,20858.0,3.12318631]
[1673813308442,0.007,20859.0,20858.0,2.69312743]
[1673813308708,0.007,20859.0,20858.0,3.15498817]
[1673813308975,0.007,20859.0,20858.0,2.70825745]
[1673813310696,0.007,20859.0,20858.0,3.13915344]
[1673813313862,0.007,20859.0,20858.0,2.70825745]
[1673813314126,0.007,20859.0,20858.0,2.91059916]
[1673813314388,0.007,20859.0,20858.0,2.24639671]
[1673813314901,0.007,20859.0,20858.0,2.6772927]
[1673813315163,0.007,20859.0,20858.0,2.24639671]
[1673813315427,0.007,20859.0,20858.0,3.13681584]
[1673813317552,0.00098092,20859.0,20858.0,3.13675772]
[1673813318384,0.00098092,20859.0,20858.0,2.70591985]
[1673813319221,0.00098092,20859.0,20858.0,2.24639671]
[1673813319478,9.298e-05,20859.0,20858.0,2.24639671]
[1673813319745,0.00581788,20865.0,20859.0,9e-05]
[1673813320003,0.00581788,20865.0,20864.0,0.35894406]
[1673813320259,0.00581788,20865.0,20864.0,3.20336127]
[1673813320518,0.00581788,20865.0,20864.0,4.1620934]
[1673813320774,0.00581788,20865.0,20864.0,3.97136745]
[1673813321859,0.00581788,20865.0,20864.0,3.68454631]
[1673813322066,0.00581788,20865.0,20864.0,3.32599777]
[1673813322315,0.00581788,20865.0,20864.0,3.77272849]
[1673813322560,0.00581788,20865.0,20864.0,4.41785612]
[1673813322808,0.00581788,20865.0,20864.0,4.06312482]
[1673813323110,0.00581788,20865.0,20864.0,4.04925082]
[1673813323341,0.00581788,20865.0,20864.0,3.85085449]
[1673813324096,0.00581788,20865.0,20864.0,3.75885449]
[1673813324362,0.00581788,20865.0,20864.0,4.11688095]
[1673813325175,0.00581788,20865.0,20864.0,3.85107449]
[1673813325443,0.00581788,20865.0,20864.0,4.35087618]
[1673813325877,0.00581788,20865.0,20864.0,4.44287618]
[1673813326406,0.00581788,20865.0,20864.0,4.43879858]
[1673813326666,0.00581788,20865.0,20864.0,4.97239245]
[1673813326935,0.00581788,20865.0,20864.0,4.68611527]
[1673813327980,0.00581788,20865.0,20864.0,4.59411527]
[1673813328264,0.00581788,20865.0,20864.0,4.68611527]
[1673813328727,0.00581788,20865.0,20864.0,4.97229453]
[1673813328943,0.00581788,20865.0,20864.0,4.68611527]
[1673813329990,0.00057825,20865.0,20864.0,4.32827618]
[1673813330248,0.0072145,20867.0,20865.0,0.10537886]
[1673813330512,0.0072145,20867.0,20866.0,2.99877685]
[1673813330779,0.0072145,20867.0,20866.0,4.54326161]
[1673813331038,0.0072145,20867.0,20866.0,4.2573075]
[1673813331545,0.0072145,20867.0,20866.0,5.02046174]
[1673813331803,0.0072145,20867.0,20866.0,4.73450919]
[1673813332104,0.0072145,20867.0,20866.0,4.82650919]
[1673813332604,0.0072145,20867.0,20866.0,5.11232269]
[1673813333428,0.0072145,20867.0,20866.0,5.65360919]
[1673813333706,0.0072145,20867.0,20866.0,5.93941416]
[1673813333971,5e-07,20867.0,20866.0,5.65360919]
[1673813334220,0.0072145,20868.0,20866.0,5.65360919]
[1673813334473,0.0072145,20868.0,20867.0,2.70706532]
[1673813334745,0.0072145,20868.0,20867.0,3.63302104]
[1673813335013,0.0072145,20868.0,20867.0,3.77620518]
[1673813335527,0.0072145,20868.0,20867.0,3.63301242]
[1673813335779,0.0072145,20868.0,20867.0,3.41876255]
[1673813336038,0.0072145,20868.0,20867.0,3.86820518]
[1673813336300,0.0072145,20868.0,20867.0,3.06403183]
[1673813336561,0.0072145,20868.0,20867.0,2.96403183]
[1673813336828,0.0072145,20868.0,20867.0,1.54109245]
[1673813337429,0.0072145,20868.0,20867.0,1.83328608]
[1673813337660,0.00235537,20870.0,20868.0,0.1]
[1673813337923,0.00235537,20870.0,20869.0,1.758577]
[1673813338190,0.00235537,20870.0,20869.0,2.058577]
[1673813339224,0.00235537,20870.0,20869.0,2.150577]
[1673813340296,0.00235537,20870.0,20869.0,2.059237]
[1673813340518,0.00235537,20870.0,20869.0,2.151237]
[1673813342090,0.00235537,20870.0,20869.0,2.72228474]
[1673813342336,0.00235537,20870.0,20869.0,2.151237]
[1673813343670,1.01164769,20876.0,20870.0,0.1]
[1673813343965,0.4916135,20876.0,20871.0,1.67788295]
[1673813344217,0.1223135,20876.0,20872.0,0.81170995]
[1673813344477,0.1223135,20876.0,20873.0,1.007971]
[1673813344746,0.1223135,20876.0,20874.0,0.620952]
[1673813345004,0.1223135,20876.0,20874.0,0.779056]
[1673813345499,0.1223135,20876.0,20874.0,0.479056]
[1673813345756,0.00903346,20876.0,20875.0,0.8758312]
[1673813346022,0.00903346,20876.0,20875.0,1.3548722]
[1673813346279,0.00403346,20876.0,20875.0,1.3830372]
[1673813347332,0.00403346,20876.0,20875.0,0.73549]
[1673813348397,0.00403346,20876.0,20875.0,0.67849]
[1673813348914,0.00403346,20876.0,20875.0,0.77049]
[1673813349213,0.00403346,20876.0,20875.0,1.34773645]
[1673813349756,0.00403346,20876.0,20875.0,0.67849]
[1673813350012,0.00403346,20876.0,20875.0,0.87149]
[1673813350266,0.00403346,20876.0,20875.0,0.77849]
[1673813350535,0.00403346,20876.0,20875.0,0.87149]
[1673813350804,0.00403346,20876.0,20875.0,0.67849]
[1673813351077,0.00403346,20876.0,20875.0,0.87049]
[1673813351328,0.00403346,20876.0,20875.0,0.77049]
[1673813352681,0.00403346,20876.0,20875.0,0.87049]
[1673813353253,0.00403346,20876.0,20875.0,0.77849]
[1673813353533,0.00403346,20876.0,20875.0,0.87049]
[1673813354883,0.00403346,20876.0,20875.0,0.87025031]
[1673813355415,0.00403346,20876.0,20875.0,1.82817456]
[1673813355948,0.00403346,20876.0,20875.0,1.8281607]
[1673813356212,0.00403346,20876.0,20875.0,1.97095133]
[1673813356468,0.00403346,20876.0,20875.0,1.8281607]
[1673813356720,0.00403346,20876.0,20875.0,1.97095312]
[1673813356987,0.00403346,20876.0,20875.0,0.98618485]
[1673813357521,0.00403346,20876.0,20875.0,0.93673585]
[1673813357783,0.00403346,20876.0,20875.0,0.84473585]
[1673813358035,0.00403346,20876.0,20875.0,1.25801985]
[1673813358295,0.00396686,20876.0,20875.0,1.25801985]
[1673813358727,0.00396686,20876.0,20875.0,1.55801985]
[1673813359182,0.00396686,20876.0,20875.0,1.46601985]
[1673813359404,0.00396686,20876.0,20875.0,1.55801985]
[1673813359626,0.00396686,20876.0,20875.0,1.46601985]
[1673813359896,0.00396686,20876.0,20875.0,0.95008531]
[1673813360150,0.00396686,20876.0,20875.0,1.04208531]
[1673813360406,0.00396686,20876.0,20875.0,0.95120531]
[1673813361813,0.00090425,20876.0,20875.0,0.95120531]
[1673813362059,0.00090425,20876.0,20875.0,1.90916472]
[1673813362315,0.00090425,20876.0,20875.0,2.14395535]
[1673813362887,0.00090425,20876.0,20875.0,2.05195535]
[1673813363395,0.00090425,20876.0,20875.0,2.35814857]
[1673813363646,0.00090425,20876.0,20875.0,1.90916472]
[1673813363910,0.00090425,20876.0,20875.0,2.05195535]
[1673813364172,0.00090425,20876.0,20875.0,2.14395535]
[1673813364934,0.00090425,20876.0,20875.0,2.05195535]
[1673813365255,0.00090425,20876.0,20875.0,2.14395535]
[1673813365687,0.00090425,20876.0,20875.0,2.00116472]
[1673813365929,0.00090425,20876.0,20875.0,2.05195535]
[1673813366198,0.00090425,20876.0,20875.0,2.14395535]
[1673813366716,0.00090425,20876.0,20875.0,2.51216294]
[1673813366967,0.00090425,20876.0,20875.0,2.65489542]
[1673813367486,0.00090425,20876.0,20875.0,2.79784093]
[1673813368260,0.00090425,20876.0,20875.0,2.42016294]
[1673813368526,0.00090425,20876.0,20875.0,2.65493321]
[1673813368781,0.00090425,20876.0,20875.0,2.79788713]
[1673813369396,0.00090425,20876.0,20875.0,2.49164771]
[1673813369920,0.00090425,20876.0,20875.0,2.94109034]
[1673813370175,0.00090425,20876.0,20875.0,2.93997034]
[1673813371257,0.00090425,20876.0,20875.0,2.79679167]
[1673813372052,0.00090425,20876.0,20875.0,2.91149167]
[1673813372568,0.00090425,20876.0,20875.0,2.69722771]
[1673813372862,0.00090425,20876.0,20875.0,3.03803113]
[1673813373123,0.00090425,20876.0,20875.0,3.00100912]
[1673813373391,0.00090425,20876.0,20875.0,1.84296969]
[1673813373648,0.00090425,20876.0,20875.0,1.52168569]
[1673813373910,0.00090425,20876.0,20875.0,0.74208531]
[1673813374168,0.00090425,20876.0,20875.0,1.70009548]
[1673813374455,0.12324744,20878.0,20875.0,1.84302045]
[1673813374731,0.00854744,20878.0,20876.0,1.34113148]
[1673813375003,0.00854744,20878.0,20877.0,2.05840016]
[1673813376205,0.00854744,20878.0,20877.0,3.01632429]
[1673813376207,0.00854744,20878.0,20877.0,3.10932346]
[1673813376698,0.00854744,20878.0,20877.0,2.15140016]
[1673813376942,0.00854744,20878.0,20877.0,3.25227624]
[1673813377454,0.00854744,20878.0,20877.0,3.15927624]
[1673813377935,0.00854744,20878.0,20877.0,3.76365599]
[1673813378176,0.00854744,20878.0,20877.0,3.67165599]
[1673813378491,0.00854744,20878.0,20877.0,3.25127624]
[1673813379649,0.00854744,20878.0,20877.0,2.15040016]
[1673813379903,0.00854744,20878.0,20877.0,3.25129116]
[1673813380401,0.00854744,20878.0,20877.0,3.54946039]
[1673813380646,0.00854744,20878.0,20877.0,3.62086835]
[1673813380893,0.00854744,20878.0,20877.0,3.76396069]
[1673813381137,0.00854744,20878.0,20877.0,3.25143414]
[1673813381374,0.00854744,20878.0,20877.0,2.93020173]
[1673813381625,0.00854744,20878.0,20877.0,2.15043416]
[1673813381860,0.00854744,20878.0,20877.0,1.87855816]
[1673813382106,0.00854744,20878.0,20877.0,3.25147363]
[1673813382613,0.00854744,20878.0,20877.0,3.46584765]
[1673813383129,0.00854744,20878.0,20877.0,3.25149033]
[1673813384128,0.00854744,20878.0,20877.0,2.77249433]
[1673813384387,0.00854744,20878.0,20877.0,1.67143816]
[1673813384617,0.00854744,20878.0,20877.0,2.45123327]
[1673813385113,0.00841008,20878.0,20877.0,2.82092446]
[1673813385344,0.00841008,20878.0,20877.0,3.14273846]
[1673813385835,0.00841008,20878.0,20877.0,3.42841645]
[1673813386625,0.00841008,20878.0,20877.0,3.21405913]
[1673813387341,0.00841008,20878.0,20877.0,3.0923436]
[1673813387598,0.00841008,20878.0,20877.0,3.34372548]
[1673813387847,0.00341008,20878.0,20877.0,3.34372548]
[1673813388095,0.00341008,20878.0,20877.0,2.98628285]
[1673813388347,0.00341008,20878.0,20877.0,2.44922298]
[1673813389097,0.00078843,20878.0,20877.0,2.44922298]
[1673813389335,0.00078843,20878.0,20877.0,2.87995585]
[1673813390057,0.00078843,20878.0,20877.0,2.78795585]
[1673813390303,0.00078843,20878.0,20877.0,2.87995585]
[1673813390554,0.00078843,20878.0,20877.0,3.31658462]
[1673813391600,0.00078843,20878.0,20877.0,2.56392298]
[1673813391835,0.00078843,20878.0,20877.0,3.43064119]
[1673813393324,0.00078843,20878.0,20877.0,3.33864119]
[1673813393581,0.00078843,20878.0,20877.0,3.43064119]
[1673813394071,0.00078843,20878.0,20877.0,2.56392298]
[1673813394816,0.00078843,20878.0,20877.0,2.99465585]
[1673813395301,0.00078843,20878.0,20877.0,3.43051674]
[1673813395560,0.00078843,20878.0,20877.0,2.56392298]
[1673813396041,0.00078843,20878.0,20877.0,2.99465585]
[1673813396294,0.00078843,20878.0,20877.0,3.42991139]
[1673813397569,0.00078843,20878.0,20877.0,2.26392298]
[1673813397818,0.00078843,20878.0,20877.0,2.62197944]
[1673813398064,0.00078843,20878.0,20877.0,2.69465585]
[1673813398803,0.00078843,20878.0,20877.0,2.99412585]
[1673813399038,0.00078843,20878.0,20877.0,3.33740812]
[1673813399275,0.00078843,20878.0,20877.0,3.42940812]
[1673813399511,0.00078843,20878.0,20877.0,2.47139298]
[1673813399757,0.00078843,20878.0,20877.0,2.56339298]
[1673813400002,0.00078843,20878.0,20877.0,2.90212585]
[1673813400224,0.00078843,20878.0,20877.0,2.99412585]
[1673813400460,0.00078843,20878.0,20877.0,2.47139298]
[1673813400702,0.00078843,20878.0,20877.0,2.56339298]
[1673813400945,0.00078843,20878.0,20877.0,2.99412585]
[1673813401178,0.00078843,20878.0,20877.0,2.99697737]
[1673813401418,0.00078843,20878.0,20877.0,2.56294498]
[1673813401658,0.00078843,20878.0,20877.0,2.99367785]
[1673813402122,0.00078843,20878.0,20877.0,3.42771627]
[1673813402608,0.00078843,20878.0,20877.0,3.33571627]
[1673813402853,0.00078843,20878.0,20877.0,2.9969834]
[1673813403099,0.00078843,20878.0,20877.0,2.56294498]
[1673813403342,0.00078843,20878.0,20877.0,2.99693868]
[1673813403581,0.00078843,20878.0,20877.0,3.3356234]
[1673813403795,0.00078843,20878.0,20877.0,3.4276234]
[1673813404527,0.00078843,20878.0,20877.0,4.34885515]
[1673813405251,0.00078843,20878.0,20877.0,4.25685515]
[1673813405499,0.00012611,20878.0,20877.0,3.91812228]
[1673813405741,0.00012611,20878.0,20877.0,3.82612228]
[1673813405978,0.00012611,20878.0,20877.0,5.35479712]
[1673813406216,0.00012611,20878.0,20877.0,4.2554603]
[1673813406503,0.00012611,20878.0,20877.0,3.91812228]
[1673813406746,0.00012611,20878.0,20877.0,3.82612228]
[1673813406992,0.00012611,20878.0,20877.0,5.35478971]
[1673813407225,0.00012611,20878.0,20877.0,5.99079372]
[1673813407730,0.00012611,20878.0,20877.0,5.35478971]
[1673813407960,0.00012611,20878.0,20877.0,4.91075965]
[1673813408201,0.00012611,20878.0,20877.0,3.47409222]
[1673813408925,0.00012611,20878.0,20877.0,4.03242228]
[1673813409165,0.00603007,20881.0,20878.0,0.1]
[1673813409407,0.00603007,20881.0,20880.0,0.1147]
[1673813409656,0.00603007,20881.0,20880.0,2.04232904]
[1673813409886,0.00603007,20881.0,20880.0,3.43426136]
[1673813410642,0.00603007,20881.0,20880.0,3.52626136]
[1673813410886,0.00603007,20881.0,20880.0,3.09721853]
[1673813411141,0.00603007,20881.0,20880.0,2.98203341]
[1673813411355,0.00603007,20881.0,20880.0,2.56327298]
[1673813411622,0.00603007,20881.0,20880.0,3.31890267]
[1673813412581,0.00603007,20881.0,20880.0,3.41090267]
[1673813412820,0.00603007,20881.0,20880.0,2.56327298]
[1673813413550,0.00603007,20881.0,20880.0,3.88797428]
[1673813413788,0.00603007,20881.0,20880.0,3.15517467]
[1673813414035,0.00603007,20881.0,20880.0,2.92456429]
[1673813414288,0.00603007,20881.0,20880.0,2.99603895]
[1673813414532,0.00603007,20881.0,20880.0,3.13897729]
[1673813414769,0.00603007,20881.0,20880.0,2.92462429]
[1673813415531,0.00603007,20881.0,20880.0,3.22462429]